[Event "FIDE U16 Olympiad_boards_1-80"]
[Site "Eindhoven, Netherlands"]
[Date "2023.08.14"]
[Round "3.19"]
[White "Moldagali, Beksultan"]
[Black "Omonov, Asrorjon"]
[Result "0-1"]
[TimeControl "2700+10"]
[WhiteElo "1883"]
[BlackElo "2051"]

1. e4 {[%clk 00:45:17]} {[%emt 00:00:03]} c6 {[%clk 00:45:07]} {[%emt
00:00:14]} 2. d4 {[%clk 00:45:21]} {[%emt 00:00:06]} d5 {[%clk 00:45:16]} 3.
Nd2 {[%clk 00:45:29]} {[%emt 00:00:01]} dxe4 {[%clk 00:45:24]} {[%emt
00:00:03]} 4. Nxe4 {[%clk 00:45:37]} {[%emt 00:00:01]} Nf6 {[%clk 00:45:33]} 5.
Nxf6+ {[%clk 00:45:45]} {[%emt 00:00:03]} exf6 {[%clk 00:45:42]} 6. c3 {[%clk
00:45:54]} {[%emt 00:00:01]} Bd6 {[%clk 00:45:51]} 7. Bd3 {[%clk 00:46:01]}
{[%emt 00:00:03]} O-O {[%clk 00:46:00]} {[%emt 00:00:01]} 8. Qc2 {[%clk
00:46:10]} {[%emt 00:00:01]} Re8+ {[%clk 00:46:09]} {[%emt 00:00:02]} 9. Ne2
{[%clk 00:46:17]} {[%emt 00:00:01]} h6 {[%clk 00:46:19]} {[%emt 00:00:01]} 10.
O-O {[%clk 00:43:32]} {[%emt 00:02:55]} Qc7 {[%clk 00:46:09]} {[%emt 00:00:20]}
11. h3 {[%clk 00:42:41]} {[%emt 00:01:01]} Nd7 {[%clk 00:45:29]} {[%emt
00:00:50]} 12. Bd2 {[%clk 00:41:43]} {[%emt 00:01:07]} Nf8 {[%clk 00:45:13]}
{[%emt 00:00:27]} 13. c4 {[%clk 00:37:14]} {[%emt 00:04:38]} Be6 {[%clk
00:43:50]} {[%emt 00:01:34]} 14. c5 {[%clk 00:33:57]} {[%emt 00:03:27]} Be7
{[%clk 00:43:30]} {[%emt 00:00:31]} 15. Bf4 {[%clk 00:33:30]} {[%emt 00:00:36]}
Qd7 {[%clk 00:42:25]} {[%emt 00:01:14]} 16. Rad1 {[%clk 00:33:21]} {[%emt
00:00:20]} f5 {[%clk 00:28:54]} {[%emt 00:13:42]} 17. Ng3 {[%clk 00:30:24]}
{[%emt 00:03:05]} Ng6 {[%clk 00:28:26]} {[%emt 00:00:38]} 18. Bc1 {[%clk
00:25:23]} {[%emt 00:05:12]} Nh4 {[%clk 00:28:14]} {[%emt 00:00:23]} 19. Bc4
{[%clk 00:20:00]} {[%emt 00:05:32]} Bd5 {[%clk 00:25:26]} {[%emt 00:02:57]} 20.
f3 {[%clk 00:19:56]} {[%emt 00:00:15]} Bf6 {[%clk 00:23:14]} {[%emt 00:02:23]}
21. Nh5 {[%clk 00:17:52]} {[%emt 00:02:12]} Bg5 {[%clk 00:19:21]} {[%emt
00:04:03]} 22. Nf4 {[%clk 00:15:49]} {[%emt 00:02:13]} Bxc4 {[%clk 00:13:53]}
{[%emt 00:05:39]} 23. Qxc4 {[%clk 00:15:57]} {[%emt 00:00:01]} Rad8 {[%clk
00:11:17]} {[%emt 00:02:46]} 24. g3 {[%clk 00:12:48]} {[%emt 00:03:19]} Bxf4
{[%clk 00:10:43]} {[%emt 00:00:45]} 25. Bxf4 {[%clk 00:12:56]} {[%emt
00:00:01]} Ng6 {[%clk 00:10:18]} {[%emt 00:00:35]} 26. Bd6 {[%clk 00:13:05]}
{[%emt 00:00:02]} Ne7 {[%clk 00:09:04]} {[%emt 00:01:24]} 27. Bxe7 {[%clk
00:11:22]} {[%emt 00:01:53]} Rxe7 {[%clk 00:07:57]} {[%emt 00:01:17]} 28. Rf2
{[%clk 00:08:17]} {[%emt 00:03:15]} Re3 {[%clk 00:06:33]} {[%emt 00:01:34]} 29.
Kg2 {[%clk 00:07:37]} {[%emt 00:00:49]} f4 {[%clk 00:06:07]} {[%emt 00:00:37]}
30. g4 {[%clk 00:06:46]} {[%emt 00:01:01]} Qe7 {[%clk 00:04:06]} {[%emt
00:02:12]} 31. d5 {[%clk 00:06:24]} {[%emt 00:00:30]} cxd5 {[%clk 00:04:13]}
{[%emt 00:00:04]} 32. Qxf4 {[%clk 00:06:32]} {[%emt 00:00:02]} Qxc5 {[%clk
00:04:06]} {[%emt 00:00:18]} 33. Qd4 {[%clk 00:05:32]} {[%emt 00:01:09]} Qxd4
{[%clk 00:01:48]} {[%emt 00:02:29]} 34. Rxd4 {[%clk 00:05:39]} {[%emt
00:00:02]} g5 {[%clk 00:01:20]} {[%emt 00:00:39]} 35. Rfd2 {[%clk 00:03:19]}
{[%emt 00:02:29]} Re6 {[%clk 00:01:05]} {[%emt 00:00:25]} 36. Rxd5 {[%clk
00:01:55]} {[%emt 00:01:35]} Rxd5 {[%clk 00:01:12]} {[%emt 00:00:03]} 37. Rxd5
{[%clk 00:02:03]} Re2+ {[%clk 00:01:21]} 38. Kg3 {[%clk 00:02:11]} {[%emt
00:00:02]} Rxb2 {[%clk 00:01:30]} {[%emt 00:00:01]} 39. Rd7 {[%clk 00:02:17]}
{[%emt 00:00:04]} a5 {[%clk 00:01:16]} {[%emt 00:00:24]} 40. a4 {[%clk
00:02:16]} {[%emt 00:00:10]} Kg7 {[%clk 00:01:06]} {[%emt 00:00:21]} 41. h4
{[%clk 00:02:13]} {[%emt 00:00:13]} gxh4+ {[%clk 00:01:02]} {[%emt 00:00:14]}
42. Kxh4 {[%clk 00:02:22]} {[%emt 00:00:01]} Rb4 {[%clk 00:00:52]} {[%emt
00:00:20]} 43. Kg3 {[%clk 00:01:28]} {[%emt 00:01:03]} Kf6 {[%clk 00:00:24]}
{[%emt 00:00:39]} 44. Rd5 {[%clk 00:01:08]} {[%emt 00:00:29]} Rxa4 {[%clk
00:00:31]} {[%emt 00:00:04]} 45. Rd6+ {[%clk 00:01:12]} {[%emt 00:00:06]} Kg7
{[%clk 00:00:39]} {[%emt 00:00:03]} 46. Rd5 {[%clk 00:00:39]} {[%emt 00:00:43]}
b6 {[%clk 00:00:40]} {[%emt 00:00:09]} 47. g5 {[%clk 00:00:35]} {[%emt
00:00:13]} hxg5 {[%clk 00:00:45]} {[%emt 00:00:05]} 48. Rxg5+ {[%clk 00:00:43]}
{[%emt 00:00:02]} Kf6 {[%clk 00:00:54]} {[%emt 00:00:02]} 49. Rh5 {[%clk
00:00:36]} {[%emt 00:00:16]} Rb4 {[%clk 00:01:03]} {[%emt 00:00:02]} 50. Kf2
{[%clk 00:00:38]} {[%emt 00:00:07]} a4 {[%clk 00:01:09]} {[%emt 00:00:04]} 51.
Ke3 {[%clk 00:00:17]} {[%emt 00:00:31]} a3 {[%clk 00:01:15]} {[%emt 00:00:04]}
52. Rh2 {[%clk 00:00:20]} {[%emt 00:00:07]} Rb2 {[%clk 00:01:23]} {[%emt
00:00:03]} 53. Rh1 {[%clk 00:00:27]} {[%emt 00:00:02]} b5 {[%clk 00:01:30]}
{[%emt 00:00:03]} 54. Kd4 {[%clk 00:00:30]} {[%emt 00:00:06]} b4 {[%clk
00:01:35]} {[%emt 00:00:05]} 55. Kc4 {[%clk 00:00:26]} {[%emt 00:00:14]} a2
{[%clk 00:01:42]} {[%emt 00:00:04]} 56. Ra1 {[%clk 00:00:30]} {[%emt 00:00:06]}
b3 {[%clk 00:01:51]} 57. Kc3 {[%clk 00:00:28]} {[%emt 00:00:12]} Rb1 {[%clk
00:02:00]} {[%emt 00:00:01]} 0-1

[Event "FIDE U16 Olympiad_boards_1-80"]
[Site "Eindhoven, Netherlands"]
[Date "2023.08.14"]
[Round "3.20"]
[White "Khamdamova, Afruza"]
[Black "Kaldarova, Ayaulym"]
[Result "1-0"]
[TimeControl "2700+10"]
[WhiteElo "2112"]
[BlackElo "1845"]

1. e4 {[%clk 00:45:18]} {[%emt 00:00:01]} e6 {[%clk 00:45:17]} {[%emt
00:00:03]} 2. d4 {[%clk 00:45:25]} {[%emt 00:00:04]} d5 {[%clk 00:45:23]}
{[%emt 00:00:03]} 3. Nd2 {[%clk 00:45:30]} {[%emt 00:00:04]} Be7 {[%clk
00:45:21]} {[%emt 00:00:13]} 4. Bd3 {[%clk 00:44:33]} {[%emt 00:01:07]} c5
{[%clk 00:44:56]} {[%emt 00:00:34]} 5. dxc5 {[%clk 00:42:54]} {[%emt 00:01:51]}
Nf6 {[%clk 00:44:20]} {[%emt 00:00:46]} 6. exd5 {[%clk 00:42:21]} {[%emt
00:00:43]} Qxd5 {[%clk 00:41:46]} {[%emt 00:02:43]} 7. Ngf3 {[%clk 00:42:24]}
{[%emt 00:00:07]} Nbd7 {[%clk 00:40:24]} {[%emt 00:01:32]} 8. O-O {[%clk
00:39:35]} {[%emt 00:03:00]} Nxc5 {[%clk 00:39:41]} {[%emt 00:00:52]} 9. Bc4
{[%clk 00:39:40]} {[%emt 00:00:05]} Qd6 {[%clk 00:36:24]} {[%emt 00:03:27]} 10.
Qe2 {[%clk 00:38:09]} {[%emt 00:01:42]} O-O {[%clk 00:36:19]} {[%emt 00:00:15]}
11. Nb3 {[%clk 00:37:07]} {[%emt 00:01:12]} Nxb3 {[%clk 00:35:45]} {[%emt
00:00:43]} 12. Bxb3 {[%clk 00:36:18]} {[%emt 00:00:59]} Qc7 {[%clk 00:33:11]}
{[%emt 00:02:45]} 13. Bg5 {[%clk 00:30:58]} {[%emt 00:05:30]} Bd7 {[%clk
00:30:29]} {[%emt 00:02:51]} 14. Ne5 {[%clk 00:28:39]} {[%emt 00:02:30]} Rfd8
{[%clk 00:29:52]} {[%emt 00:00:47]} 15. Rfe1 {[%clk 00:28:33]} {[%emt
00:00:15]} Be8 {[%clk 00:29:37]} {[%emt 00:00:26]} 16. Bh4 {[%clk 00:26:58]}
{[%emt 00:01:45]} Rac8 {[%clk 00:27:13]} {[%emt 00:02:34]} 17. c3 {[%clk
00:26:56]} {[%emt 00:00:11]} b5 {[%clk 00:25:54]} {[%emt 00:01:29]} 18. Bg3
{[%clk 00:23:52]} {[%emt 00:03:14]} Qb7 {[%clk 00:23:55]} {[%emt 00:02:09]} 19.
Bc2 {[%clk 00:19:19]} {[%emt 00:04:43]} a5 {[%clk 00:22:48]} {[%emt 00:01:18]}
20. Rac1 {[%clk 00:18:27]} {[%emt 00:01:02]} Bf8 {[%clk 00:16:47]} {[%emt
00:06:11]} 21. Bh4 {[%clk 00:15:41]} {[%emt 00:02:56]} Be7 {[%clk 00:16:44]}
{[%emt 00:00:13]} 22. Bb1 {[%clk 00:14:40]} {[%emt 00:01:11]} Rd6 {[%clk
00:15:26]} {[%emt 00:01:27]} 23. Qc2 {[%clk 00:14:19]} {[%emt 00:00:31]} g6
{[%emt 00:00:22]} 24. Bg3 {[%clk 00:13:03]} {[%emt 00:01:26]} Nh5 {[%clk
00:13:49]} {[%emt 00:01:36]} 25. Qe2 {[%clk 00:11:30]} {[%emt 00:01:43]} Nxg3
{[%clk 00:13:43]} {[%emt 00:00:15]} 26. hxg3 {[%clk 00:11:38]} {[%emt
00:00:02]} Rcd8 {[%clk 00:12:55]} {[%emt 00:00:58]} 27. Be4 {[%clk 00:11:26]}
{[%emt 00:00:23]} Qb8 {[%clk 00:12:50]} {[%emt 00:00:15]} 28. Nf3 {[%clk
00:11:26]} {[%emt 00:00:10]} Bf6 {[%clk 00:12:34]} {[%emt 00:00:25]} 29. g4
{[%clk 00:11:08]} {[%emt 00:00:29]} Bg7 {[%clk 00:11:45]} {[%emt 00:00:59]} 30.
g5 {[%clk 00:11:13]} {[%emt 00:00:06]} Qb6 {[%clk 00:09:48]} {[%emt 00:02:06]}
31. b3 {[%clk 00:08:28]} {[%emt 00:02:54]} b4 {[%clk 00:07:08]} {[%emt
00:02:50]} 32. c4 {[%clk 00:08:07]} {[%emt 00:00:31]} Qc5 {[%clk 00:07:10]}
{[%emt 00:00:08]} 33. Red1 {[%clk 00:07:43]} {[%emt 00:00:35]} a4 {[%clk
00:07:04]} {[%emt 00:00:16]} 34. Rxd6 {[%clk 00:07:23]} {[%emt 00:00:30]} Rxd6
{[%clk 00:07:10]} {[%emt 00:00:04]} 35. Rd1 {[%clk 00:07:19]} {[%emt 00:00:13]}
axb3 {[%clk 00:06:06]} {[%emt 00:01:15]} 36. axb3 {[%clk 00:07:28]} Bc3 {[%clk
00:05:38]} {[%emt 00:00:38]} 37. Rd3 {[%clk 00:07:00]} {[%emt 00:00:38]} Bc6
{[%clk 00:05:31]} {[%emt 00:00:17]} 38. Bxc6 {[%clk 00:06:41]} {[%emt
00:00:29]} Qxc6 {[%clk 00:05:39]} {[%emt 00:00:02]} 39. Qd1 {[%clk 00:06:30]}
{[%emt 00:00:21]} Rxd3 {[%clk 00:05:46]} {[%emt 00:00:03]} 40. Qxd3 {[%clk
00:06:39]} {[%emt 00:00:01]} Qc5 {[%clk 00:05:31]} {[%emt 00:00:24]} 41. g3
{[%clk 00:04:07]} {[%emt 00:02:43]} Kg7 {[%clk 00:05:12]} {[%emt 00:00:29]} 42.
Kg2 {[%clk 00:03:56]} {[%emt 00:00:22]} Qa5 {[%clk 00:04:50]} {[%emt 00:00:31]}
43. Qe3 {[%clk 00:03:06]} {[%emt 00:01:01]} Qf5 {[%clk 00:04:35]} {[%emt
00:00:24]} 44. Nd4 {[%clk 00:02:49]} {[%emt 00:00:26]} Bxd4 {[%clk 00:01:36]}
{[%emt 00:03:10]} 45. Qxd4+ {[%clk 00:02:59]} {[%emt 00:00:01]} e5 {[%clk
00:01:45]} {[%emt 00:00:01]} 46. Qe3 {[%clk 00:02:52]} {[%emt 00:00:17]} Qe6
{[%clk 00:01:43]} {[%emt 00:00:11]} 47. Qe4 {[%clk 00:02:54]} {[%emt 00:00:08]}
Qd6 {[%clk 00:01:28]} {[%emt 00:00:25]} 48. Qb7 {[%clk 00:02:47]} {[%emt
00:00:17]} Qd2 {[%clk 00:00:26]} {[%emt 00:01:12]} 49. Qe7 {[%clk 00:01:55]}
{[%emt 00:01:01]} Qc3 {[%clk 00:00:20]} {[%emt 00:00:16]} 50. c5 {[%clk
00:01:41]} {[%emt 00:00:25]} e4 {[%clk 00:00:13]} {[%emt 00:00:17]} 51. Kh3
{[%clk 00:01:25]} {[%emt 00:00:26]} Qxb3 {[%clk 00:00:11]} {[%emt 00:00:12]} 52.
Qf6+ {[%clk 00:01:10]} {[%emt 00:00:25]} Kf8 {[%clk 00:00:16]} {[%emt
00:00:06]} 53. Qd8+ {[%clk 00:00:24]} {[%emt 00:00:55]} Kg7 {[%clk 00:00:25]}
54. Qf6+ {[%clk 00:00:23]} {[%emt 00:00:11]} Kf8 {[%clk 00:00:34]} {[%emt
00:00:01]} 55. Qd6+ {[%clk 00:00:26]} {[%emt 00:00:08]} Ke8 {[%clk 00:00:19]}
{[%emt 00:00:25]} 56. Qb8+ {[%clk 00:00:33]} {[%emt 00:00:02]} Ke7 {[%clk
00:00:16]} {[%emt 00:00:13]} 57. Qb7+ {[%clk 00:00:37]} {[%emt 00:00:05]} Ke8
{[%clk 00:00:11]} {[%emt 00:00:15]} 58. Qxe4+ {[%clk 00:00:45]} {[%emt
00:00:02]} Kf8 {[%clk 00:00:13]} {[%emt 00:00:08]} 59. Qa8+ {[%clk 00:00:53]}
{[%emt 00:00:03]} Ke7 {[%clk 00:00:20]} {[%emt 00:00:03]} 60. Qb7+ {[%clk
00:01:01]} {[%emt 00:00:03]} Kd8 {[%clk 00:00:11]} {[%emt 00:00:18]} 61. c6
{[%clk 00:01:07]} {[%emt 00:00:04]} Qe6+ {[%clk 00:00:20]} {[%emt 00:00:01]} 62.
Kh2 {[%clk 00:01:16]} Qd6 {[%clk 00:00:18]} {[%emt 00:00:12]} 63. Qxf7 {[%clk
00:01:04]} {[%emt 00:00:22]} Qxc6 {[%clk 00:00:26]} {[%emt 00:00:02]} 64. Qf8+
{[%clk 00:01:13]} {[%emt 00:00:01]} Kd7 {[%clk 00:00:23]} {[%emt 00:00:13]} 65.
Qxb4 {[%clk 00:01:22]} {[%emt 00:00:01]} Qf3 {[%clk 00:00:19]} {[%emt
00:00:15]} 66. Qd4+ {[%clk 00:01:21]} {[%emt 00:00:10]} Ke6 {[%clk 00:00:16]}
{[%emt 00:00:13]} 67. Kg1 {[%clk 00:01:25]} {[%emt 00:00:06]} Kf5 {[%clk
00:00:12]} {[%emt 00:00:14]} 68. Qh4 {[%clk 00:01:15]} {[%emt 00:00:20]} Qd1+
{[%clk 00:00:18]} {[%emt 00:00:04]} 69. Kg2 {[%clk 00:01:24]} {[%emt 00:00:01]}
Qd5+ {[%clk 00:00:25]} {[%emt 00:00:03]} 70. Kh2 {[%clk 00:01:29]} {[%emt
00:00:04]} Qf3 {[%clk 00:00:25]} {[%emt 00:00:10]} 71. Kg1 {[%clk 00:01:15]}
{[%emt 00:00:25]} Qd1+ {[%clk 00:00:34]} 72. Kg2 {[%clk 00:01:24]} {[%emt
00:00:01]} Qd5+ {[%clk 00:00:43]} {[%emt 00:00:01]} 73. f3 {[%clk 00:01:28]}
{[%emt 00:00:06]} Qd2+ {[%clk 00:00:32]} {[%emt 00:00:21]} 74. Kh3 {[%clk
00:01:37]} {[%emt 00:00:01]} Qxg5 {[%clk 00:00:28]} {[%emt 00:00:14]} 75. Qxh7
{[%clk 00:01:32]} {[%emt 00:00:15]} Kf6 {[%clk 00:00:14]} {[%emt 00:00:24]} 76.
Qd7 {[%clk 00:01:39]} {[%emt 00:00:03]} Qh6+ {[%clk 00:00:17]} {[%emt
00:00:07]} 77. Kg2 {[%clk 00:01:48]} Qc1 {[%clk 00:00:21]} {[%emt 00:00:05]} 78.
f4 {[%clk 00:00:55]} {[%emt 00:01:04]} Qc2+ {[%clk 00:00:21]} {[%emt 00:00:10]}
79. Kf3 {[%clk 00:00:57]} {[%emt 00:00:08]} Qb3+ {[%clk 00:00:17]} {[%emt
00:00:13]} 80. Kg4 {[%clk 00:01:06]} {[%emt 00:00:02]} Qc3 {[%clk 00:00:12]}
{[%emt 00:00:15]} 81. Qe8 {[%clk 00:00:50]} {[%emt 00:00:25]} Kg7 {[%clk
00:00:12]} {[%emt 00:00:11]} 82. Qe5+ {[%clk 00:00:47]} {[%emt 00:00:13]} Qxe5
{[%clk 00:00:19]} {[%emt 00:00:03]} 83. fxe5 {[%clk 00:00:57]} {[%emt
00:00:01]} Kf7 {[%clk 00:00:21]} {[%emt 00:00:08]} 84. Kg5 {[%clk 00:01:03]}
{[%emt 00:00:04]} Kg7 {[%clk 00:00:11]} {[%emt 00:00:19]} 85. e6 {[%clk
00:01:11]} {[%emt 00:00:02]} 1-0

[Event "FIDE U16 Olympiad_boards_1-80"]
[Site "Eindhoven, Netherlands"]
[Date "2023.08.14"]
[Round "3.21"]
[White "Samadov, Read"]
[Black "Kanov, Nikola"]
[Result "1-0"]
[TimeControl "2700+10"]
[WhiteElo "2355"]
[BlackElo "2283"]

1. d4 {[%clk 00:45:17]} {[%emt 00:00:03]} Nf6 {[%clk 00:45:17]} {[%emt
00:00:04]} 2. c4 {[%clk 00:45:17]} {[%emt 00:00:10]} e6 {[%clk 00:45:24]}
{[%emt 00:00:03]} 3. Nf3 {[%clk 00:45:11]} {[%emt 00:00:15]} c5 {[%clk
00:45:22]} {[%emt 00:00:12]} 4. d5 {[%clk 00:44:57]} {[%emt 00:00:25]} exd5
{[%clk 00:45:28]} {[%emt 00:00:04]} 5. cxd5 {[%clk 00:45:05]} {[%emt 00:00:03]}
d6 {[%clk 00:45:33]} {[%emt 00:00:04]} 6. Nc3 {[%clk 00:45:11]} {[%emt
00:00:03]} g6 {[%clk 00:45:32]} {[%emt 00:00:12]} 7. e4 {[%clk 00:45:08]}
{[%emt 00:00:13]} a6 {[%clk 00:45:22]} {[%emt 00:00:21]} 8. Qe2 {[%clk
00:43:55]} {[%emt 00:01:22]} Bg4 {[%clk 00:40:33]} {[%emt 00:05:00]} 9. e5
{[%clk 00:41:23]} {[%emt 00:02:41]} dxe5 {[%clk 00:40:21]} {[%emt 00:00:22]} 10.
Qxe5+ {[%clk 00:40:45]} {[%emt 00:00:48]} Qe7 {[%clk 00:35:48]} {[%emt
00:04:43]} 11. Qxe7+ {[%clk 00:40:39]} {[%emt 00:00:16]} Bxe7 {[%clk 00:35:54]}
{[%emt 00:00:04]} 12. Ne5 {[%clk 00:40:41]} {[%emt 00:00:07]} Nbd7 {[%clk
00:32:34]} {[%emt 00:03:31]} 13. Nxg4 {[%clk 00:40:22]} {[%emt 00:00:29]} Nxg4
{[%clk 00:32:42]} {[%emt 00:00:02]} 14. Bf4 {[%clk 00:39:33]} {[%emt 00:00:58]}
O-O {[%clk 00:27:53]} {[%emt 00:04:59]} 15. Be2 {[%clk 00:37:42]} {[%emt
00:02:01]} Ngf6 {[%clk 00:27:27]} {[%emt 00:00:37]} 16. O-O-O {[%clk 00:36:40]}
{[%emt 00:01:12]} Rfe8 {[%clk 00:20:19]} {[%emt 00:07:18]} 17. Bf3 {[%clk
00:33:21]} {[%emt 00:03:28]} Bf8 {[%clk 00:19:26]} {[%emt 00:01:04]} 18. d6
{[%clk 00:32:05]} {[%emt 00:01:26]} Ra7 {[%clk 00:16:45]} {[%emt 00:02:51]} 19.
Rhe1 {[%clk 00:30:21]} {[%emt 00:01:54]} Rd8 {[%clk 00:15:50]} {[%emt
00:01:06]} 20. g4 {[%clk 00:26:45]} {[%emt 00:03:44]} b5 {[%clk 00:08:27]}
{[%emt 00:07:34]} 21. g5 {[%clk 00:25:21]} {[%emt 00:01:34]} Ne8 {[%clk
00:08:36]} {[%emt 00:00:02]} 22. Bc6 {[%clk 00:21:36]} {[%emt 00:03:54]} Rc8
{[%clk 00:08:03]} {[%emt 00:00:43]} 23. Bxd7 {[%clk 00:21:18]} {[%emt
00:00:28]} Rxd7 {[%clk 00:08:08]} {[%emt 00:00:05]} 24. Nd5 {[%clk 00:21:14]}
{[%emt 00:00:14]} 1-0

[Event "FIDE U16 Olympiad_boards_1-80"]
[Site "Eindhoven, Netherlands"]
[Date "2023.08.14"]
[Round "3.22"]
[White "Georgiev, Konstantin"]
[Black "Ahmad, Khagan"]
[Result "0-1"]
[TimeControl "2700+10"]
[WhiteElo "1995"]
[BlackElo "2163"]

1. e4 {[%clk 00:45:17]} c5 {[%clk 00:45:17]} {[%emt 00:00:03]} 2. Nf3 {[%clk
00:45:19]} {[%emt 00:00:07]} Nc6 {[%clk 00:45:16]} {[%emt 00:00:11]} 3. d4
{[%clk 00:45:26]} {[%emt 00:00:04]} cxd4 {[%clk 00:45:24]} {[%emt 00:00:01]} 4.
Nxd4 {[%clk 00:45:34]} {[%emt 00:00:02]} Nf6 {[%clk 00:45:32]} {[%emt
00:00:02]} 5. Nc3 {[%clk 00:45:42]} {[%emt 00:00:02]} e5 {[%clk 00:45:41]}
{[%emt 00:00:02]} 6. Ndb5 {[%clk 00:45:50]} {[%emt 00:00:02]} d6 {[%clk
00:45:49]} {[%emt 00:00:02]} 7. Bg5 {[%clk 00:45:54]} {[%emt 00:00:05]} a6
{[%clk 00:45:58]} {[%emt 00:00:02]} 8. Na3 {[%clk 00:45:55]} {[%emt 00:00:08]}
b5 {[%clk 00:46:02]} {[%emt 00:00:06]} 9. Nd5 {[%clk 00:46:03]} {[%emt
00:00:03]} Be7 {[%clk 00:46:10]} {[%emt 00:00:02]} 10. Bxf6 {[%clk 00:46:09]}
{[%emt 00:00:03]} Bxf6 {[%clk 00:46:18]} {[%emt 00:00:02]} 11. c3 {[%clk
00:45:59]} {[%emt 00:00:20]} Bg5 {[%clk 00:46:12]} {[%emt 00:00:15]} 12. Nc2
{[%clk 00:45:56]} {[%emt 00:00:15]} Rb8 {[%clk 00:46:17]} {[%emt 00:00:05]} 13.
g3 {[%clk 00:46:04]} {[%emt 00:00:02]} O-O {[%clk 00:44:38]} {[%emt 00:01:49]}
14. h4 {[%clk 00:46:13]} {[%emt 00:00:02]} Bh6 {[%clk 00:44:43]} {[%emt
00:00:04]} 15. Bh3 {[%clk 00:46:22]} {[%emt 00:00:01]} Be6 {[%clk 00:44:45]}
{[%emt 00:00:08]} 16. Ncb4 {[%clk 00:44:50]} {[%emt 00:01:42]} Nxb4 {[%clk
00:44:06]} {[%emt 00:00:49]} 17. Nxb4 {[%clk 00:44:56]} {[%emt 00:00:04]} Qb6
{[%clk 00:43:32]} {[%emt 00:00:43]} 18. Bxe6 {[%clk 00:41:56]} {[%emt
00:03:10]} fxe6 {[%clk 00:43:41]} {[%emt 00:00:02]} 19. O-O {[%clk 00:42:03]}
{[%emt 00:00:03]} Rf6 {[%clk 00:43:03]} {[%emt 00:00:48]} 20. Qe2 {[%clk
00:40:34]} {[%emt 00:01:39]} Rbf8 {[%clk 00:41:59]} {[%emt 00:01:14]} 21. Rad1
{[%clk 00:40:36]} {[%emt 00:00:08]} Rxf2 {[%clk 00:41:46]} {[%emt 00:00:24]} 22.
Rxf2 {[%clk 00:38:39]} {[%emt 00:02:07]} Rxf2 {[%clk 00:41:53]} {[%emt
00:00:02]} 23. Rxd6 {[%clk 00:37:47]} {[%emt 00:01:02]} Rxe2+ {[%clk 00:41:56]}
{[%emt 00:00:06]} 0-1